[Event "*** Titled Tuesday Blitz"]
[Site "Chess.com"]
[Date "2019.07.02"]
[Round "1"]
[White "DonPreuss"]
[Black "Yoshkinkot"]
[Result "0-1"]
[WhiteElo "2175"]
[BlackElo "2543"]
[TimeControl "180+2"]
[EndTime "13:04:34 PDT"]
[Termination "Yoshkinkot won by resignation"]

1. d4 {[%clk 0:02:59.7]} 1... Nf6 {[%clk 0:02:43.7]} 2. Nc3 {[%clk 0:02:58.8]}
2... d5 {[%clk 0:02:42.7]} 3. e4 {[%clk 0:02:57.9]} 3... Nxe4 {[%clk 0:02:38.8]}
4. Nxe4 {[%clk 0:02:57.9]} 4... dxe4 {[%clk 0:02:39.8]} 5. Bc4 {[%clk
0:02:59.6]} 5... e6 {[%clk 0:02:35.8]} 6. c3 {[%clk 0:03:00.1]} 6... c5 {[%clk
0:02:30.1]} 7. d5 {[%clk 0:02:59.5]} 7... Be7 {[%clk 0:02:15.7]} 8. dxe6 {[%clk
0:02:45.5]} 8... Qxd1+ {[%clk 0:02:15.9]} 9. Kxd1 {[%clk 0:02:47.4]} 9... f5
{[%clk 0:02:02.8]} 10. Ne2 {[%clk 0:02:42.9]} 10... Nc6 {[%clk 0:02:03.3]} 11.
Kc2 {[%clk 0:02:42.4]} 11... O-O {[%clk 0:01:52.5]} 12. h4 {[%clk 0:02:42]}
12... Rd8 {[%clk 0:01:44]} 13. a4 {[%clk 0:02:32.6]} 13... Ne5 {[%clk
0:01:43.5]} 14. Ba2 {[%clk 0:02:26.6]} 14... b6 {[%clk 0:01:44.3]} 15. Bf4
{[%clk 0:02:24.8]} 15... Nd3 {[%clk 0:01:41.7]} 16. Bc7 {[%clk 0:02:22]} 16...
Re8 {[%clk 0:01:42.2]} 17. Raf1 {[%clk 0:02:11.5]} 17... Ba6 {[%clk 0:01:41.7]}
18. c4 {[%clk 0:02:08.3]} 18... Nb4+ {[%clk 0:01:38]} 19. Kb1 {[%clk 0:02:08.9]}
19... Nxa2 {[%clk 0:01:39.3]} 20. Ng3 {[%clk 0:01:58.4]} 20... Nb4 {[%clk
0:01:35.7]} 21. Nxf5 {[%clk 0:01:58.6]} 21... Bxc4 {[%clk 0:01:36.3]} 22. Re1
{[%clk 0:01:48.2]} 22... Bxe6 {[%clk 0:01:36.5]} 23. Nxe7+ {[%clk 0:01:47.2]}
23... Rxe7 {[%clk 0:01:37.4]} 24. Bg3 {[%clk 0:01:48.5]} 24... Bf5 {[%clk
0:01:36.4]} 25. Ka1 {[%clk 0:01:48.1]} 25... Nc2+ {[%clk 0:01:37.2]} 0-1

[Event "*** Titled Tuesday Blitz"]
[Site "Chess.com"]
[Date "2019.07.02"]
[Round "1"]
[White "TST2014"]
[Black "Karina_Ivanova"]
[Result "1-0"]
[WhiteElo "2551"]
[BlackElo "2187"]
[TimeControl "180+2"]
[EndTime "13:04:55 PDT"]
[Termination "TST2014 won by checkmate"]

1. d4 {[%clk 0:02:57.4]} 1... Nf6 {[%clk 0:02:59.9]} 2. c4 {[%clk 0:02:58.2]}
2... e6 {[%clk 0:03:00.8]} 3. Nf3 {[%clk 0:02:59.1]} 3... b6 {[%clk 0:03:00.3]}
4. a3 {[%clk 0:02:59.7]} 4... Bb7 {[%clk 0:03:00.3]} 5. Nc3 {[%clk 0:03:00.8]}
5... d5 {[%clk 0:03:01.4]} 6. cxd5 {[%clk 0:03:00.6]} 6... Nxd5 {[%clk
0:03:02.3]} 7. e3 {[%clk 0:03:01.9]} 7... Be7 {[%clk 0:03:02.6]} 8. Bb5+ {[%clk
0:03:02.8]} 8... c6 {[%clk 0:03:03]} 9. Bd3 {[%clk 0:03:03.6]} 9... Nd7 {[%clk
0:03:03.1]} 10. e4 {[%clk 0:03:03.5]} 10... Nxc3 {[%clk 0:03:03.7]} 11. bxc3
{[%clk 0:03:05.2]} 11... c5 {[%clk 0:03:04.8]} 12. Bf4 {[%clk 0:03:05.8]} 12...
O-O {[%clk 0:03:05.3]} 13. O-O {[%clk 0:03:06.5]} 13... Rc8 {[%clk 0:03:02.4]}
14. Qe2 {[%clk 0:03:07.1]} 14... Re8 {[%clk 0:02:56.9]} 15. Rfd1 {[%clk
0:03:05.4]} 15... Bf6 {[%clk 0:02:57.1]} 16. a4 {[%clk 0:03:04.9]} 16... g6
{[%clk 0:02:56.9]} 17. a5 {[%clk 0:03:04.2]} 17... cxd4 {[%clk 0:02:57.3]} 18.
cxd4 {[%clk 0:02:59.3]} 18... Qe7 {[%clk 0:02:58]} 19. Ba6 {[%clk 0:02:51.6]}
19... Bxa6 {[%clk 0:02:54.9]} 20. Qxa6 {[%clk 0:02:53.2]} 20... Nb8 {[%clk
0:02:52.2]} 21. Qb5 {[%clk 0:02:45.2]} 21... Red8 {[%clk 0:02:52.3]} 22. axb6
{[%clk 0:02:44.4]} 22... Qb7 {[%clk 0:02:51]} 23. Rxa7 {[%clk 0:02:39.5]} 23...
Qxe4 {[%clk 0:02:51.7]} 24. Bc7 {[%clk 0:02:29.7]} 24... Qd5 {[%clk 0:02:45.4]}
25. Qxd5 {[%clk 0:02:26.6]} 25... Rxd5 {[%clk 0:02:45.7]} 26. Ra8 {[%clk
0:02:27.2]} 26... Rdd8 {[%clk 0:02:41.3]} 27. Bxd8 {[%clk 0:02:27.2]} 27... Rxd8
{[%clk 0:02:42.4]} 28. g4 {[%clk 0:02:23.2]} 28... h5 {[%clk 0:02:41.8]} 29. g5
{[%clk 0:02:24.1]} 29... Be7 {[%clk 0:02:41]} 30. b7 {[%clk 0:02:13.4]} 30...
Bd6 {[%clk 0:02:22.4]} 31. Rc1 {[%clk 0:02:12]} 31... Kf8 {[%clk 0:02:22.3]} 32.
Rc8 {[%clk 0:02:12.1]} 32... Ke7 {[%clk 0:02:23.2]} 33. Ne5 {[%clk 0:02:11.1]}
33... Bxe5 {[%clk 0:02:08.7]} 34. dxe5 {[%clk 0:02:11.1]} 34... Nc6 {[%clk
0:02:04.8]} 35. Rxc6 {[%clk 0:02:06]} 35... Rd1+ {[%clk 0:02:03.1]} 36. Kg2
{[%clk 0:02:06.5]} 36... Rd5 {[%clk 0:02:03.9]} 37. Rc7+ {[%clk 0:02:06.3]}
37... Rd7 {[%clk 0:02:03.7]} 38. b8=Q {[%clk 0:02:07.2]} 38... f5 {[%clk
0:02:00.5]} 39. Qf8# {[%clk 0:02:07.6]} 1-0

[Event "*** Titled Tuesday Blitz"]
[Site "Chess.com"]
[Date "2019.07.02"]
[Round "1"]
[White "OparinGrigoriy"]
[Black "KL31"]
[Result "1-0"]
[WhiteElo "2974"]
[BlackElo "2453"]
[TimeControl "180+2"]
[EndTime "13:05:01 PDT"]
[Termination "OparinGrigoriy won by resignation"]

1. Nf3 {[%clk 0:03:01.9]} 1... Nf6 {[%clk 0:02:59.9]} 2. g3 {[%clk 0:03:03.8]}
2... d5 {[%clk 0:03:00.1]} 3. Bg2 {[%clk 0:03:05.7]} 3... Bf5 {[%clk 0:03:01]}
4. c4 {[%clk 0:03:06]} 4... e6 {[%clk 0:02:44.8]} 5. O-O {[%clk 0:03:05.6]} 5...
c6 {[%clk 0:02:42.5]} 6. cxd5 {[%clk 0:03:04.7]} 6... exd5 {[%clk 0:02:39.5]} 7.
d3 {[%clk 0:03:06.1]} 7... Be7 {[%clk 0:02:38.1]} 8. Nc3 {[%clk 0:03:07.4]} 8...
O-O {[%clk 0:02:35.7]} 9. Qb3 {[%clk 0:03:08.6]} 9... Qb6 {[%clk 0:02:35.2]} 10.
Qc2 {[%clk 0:03:09.8]} 10... h6 {[%clk 0:02:24.6]} 11. e4 {[%clk 0:03:11]} 11...
dxe4 {[%clk 0:02:17.6]} 12. dxe4 {[%clk 0:03:12.9]} 12... Bh7 {[%clk 0:02:15.1]}
13. Be3 {[%clk 0:03:14.3]} 13... Qb4 {[%clk 0:01:54.1]} 14. a3 {[%clk
0:02:43.2]} 14... Bxe4 {[%clk 0:01:43.4]} 15. Nxe4 {[%clk 0:02:44.5]} 15... Qxe4
{[%clk 0:01:44.8]} 16. Qb3 {[%clk 0:02:46.1]} 16... Nbd7 {[%clk 0:01:20.5]} 17.
Rfe1 {[%clk 0:02:45.2]} 17... Qd5 {[%clk 0:01:16]} 18. Qxb7 {[%clk 0:02:43.1]}
18... Rfb8 {[%clk 0:01:11.9]} 19. Qa6 {[%clk 0:02:43.9]} 19... Rxb2 {[%clk
0:01:02.3]} 20. Nd4 {[%clk 0:02:45.1]} 20... Nc5 {[%clk 0:00:45.2]} 21. Qxc6
{[%clk 0:02:41.3]} 21... Qxc6 {[%clk 0:00:43.5]} 22. Nxc6 {[%clk 0:02:43.2]}
22... Bf8 {[%clk 0:00:35.8]} 23. Ne7+ {[%clk 0:02:44.2]} 23... Bxe7 {[%clk
0:00:35]} 24. Bxa8 {[%clk 0:02:46.1]} 24... Ng4 {[%clk 0:00:21]} 25. Bd4 {[%clk
0:02:43.4]} 25... Rd2 {[%clk 0:00:21.3]} 26. Rad1 {[%clk 0:02:44.7]} 1-0

[Event "*** Titled Tuesday Blitz"]
[Site "Chess.com"]
[Date "2019.07.02"]
[Round "1"]
[White "jacky72"]
[Black "Andrii_Prydun"]
[Result "1-0"]
[WhiteElo "2629"]
[BlackElo "2298"]
[TimeControl "180+2"]
[EndTime "13:05:07 PDT"]
[Termination "jacky72 won by resignation"]

1. d4 {[%clk 0:02:59.8]} 1... d5 {[%clk 0:03:00.9]} 2. c4 {[%clk 0:02:59.2]}
2... c6 {[%clk 0:03:01.8]} 3. cxd5 {[%clk 0:02:58.2]} 3... cxd5 {[%clk
0:03:02.4]} 4. Nc3 {[%clk 0:02:54.8]} 4... Nf6 {[%clk 0:03:02.2]} 5. Bf4 {[%clk
0:02:50.3]} 5... e6 {[%clk 0:03:02.5]} 6. e3 {[%clk 0:02:50.3]} 6... a6 {[%clk
0:02:45.3]} 7. Bd3 {[%clk 0:02:50.8]} 7... Bd6 {[%clk 0:02:44.5]} 8. Bg5 {[%clk
0:02:51.7]} 8... O-O {[%clk 0:02:39.6]} 9. f4 {[%clk 0:02:52.4]} 9... Nc6 {[%clk
0:02:14.4]} 10. Nf3 {[%clk 0:02:52.5]} 10... Bd7 {[%clk 0:02:04.9]} 11. O-O
{[%clk 0:02:52.9]} 11... Rc8 {[%clk 0:02:04.6]} 12. Ne5 {[%clk 0:02:53.6]} 12...
Be7 {[%clk 0:02:01.9]} 13. Rc1 {[%clk 0:02:48.8]} 13... h6 {[%clk 0:01:24.7]}
14. Bh4 {[%clk 0:02:45.7]} 14... Ne8 {[%clk 0:00:58.9]} 15. Bxe7 {[%clk
0:02:41.8]} 15... Qxe7 {[%clk 0:00:59.5]} 16. Bb1 {[%clk 0:02:43.7]} 16... Nd6
{[%clk 0:00:57.8]} 17. Qd3 {[%clk 0:02:43.4]} 17... g6 {[%clk 0:00:49.2]} 18.
Rf3 {[%clk 0:02:42.6]} 18... Nf5 {[%clk 0:00:43.9]} 19. g4 {[%clk 0:02:40.5]}
19... Ng7 {[%clk 0:00:44.4]} 20. Rh3 {[%clk 0:02:38.2]} 20... Kh7 {[%clk
0:00:40]} 21. Nxg6 {[%clk 0:02:33.2]} 21... fxg6 {[%clk 0:00:37.9]} 22. Qxg6+
{[%clk 0:02:35.1]} 22... Kg8 {[%clk 0:00:38.3]} 23. Qh7+ {[%clk 0:02:37]} 23...
Kf7 {[%clk 0:00:37.6]} 24. Bg6+ {[%clk 0:02:38.9]} 24... Kf6 {[%clk 0:00:38.5]}
25. Qxh6 {[%clk 0:02:35.1]} 1-0

[Event "*** Titled Tuesday Blitz"]
[Site "Chess.com"]
[Date "2019.07.02"]
[Round "1"]
[White "Squirlolz"]
[Black "AbasovN"]
[Result "0-1"]
[WhiteElo "2443"]
[BlackElo "2878"]
[TimeControl "180+2"]
[EndTime "13:05:09 PDT"]
[Termination "AbasovN won by checkmate"]

1. e4 {[%clk 0:03:00.3]} 1... c5 {[%clk 0:03:00.6]} 2. c3 {[%clk 0:02:59.8]}
2... Nf6 {[%clk 0:03:00.7]} 3. e5 {[%clk 0:03:00.6]} 3... Nd5 {[%clk 0:03:01.9]}
4. Nf3 {[%clk 0:03:02.5]} 4... Nc6 {[%clk 0:03:02]} 5. Bc4 {[%clk 0:03:02.5]}
5... Nb6 {[%clk 0:03:02.4]} 6. Bb3 {[%clk 0:03:04.1]} 6... c4 {[%clk 0:03:03.8]}
7. Bc2 {[%clk 0:03:05.7]} 7... d6 {[%clk 0:03:05.4]} 8. exd6 {[%clk 0:03:06.6]}
8... Qxd6 {[%clk 0:03:07.3]} 9. O-O {[%clk 0:03:07.9]} 9... Bg4 {[%clk
0:03:08.6]} 10. Re1 {[%clk 0:03:08.9]} 10... O-O-O {[%clk 0:03:07.1]} 11. h3
{[%clk 0:03:10]} 11... Bh5 {[%clk 0:03:08.5]} 12. Be4 {[%clk 0:02:59.5]} 12...
e6 {[%clk 0:03:08.9]} 13. b3 {[%clk 0:02:53.3]} 13... f5 {[%clk 0:03:09.5]} 14.
Bc2 {[%clk 0:02:35.9]} 14... g6 {[%clk 0:03:10.5]} 15. bxc4 {[%clk 0:02:20.9]}
15... e5 {[%clk 0:03:11.7]} 16. d3 {[%clk 0:01:47.7]} 16... e4 {[%clk
0:03:10.9]} 17. dxe4 {[%clk 0:01:35.6]} 17... Qc7 {[%clk 0:03:12.4]} 18. Nbd2
{[%clk 0:01:15.2]} 18... Ne5 {[%clk 0:03:13.6]} 19. exf5 {[%clk 0:01:03.7]}
19... Nxf3+ {[%clk 0:03:11.9]} 20. gxf3 {[%clk 0:01:04.6]} 20... Bc5 {[%clk
0:03:13.5]} 21. Qe2 {[%clk 0:01:00.1]} 21... Qg3+ {[%clk 0:03:13.1]} 22. Kf1
{[%clk 0:00:56.5]} 22... Qxh3+ {[%clk 0:03:15]} 23. Kg1 {[%clk 0:00:58]} 23...
gxf5 {[%clk 0:02:54]} 24. Qe6+ {[%clk 0:00:11]} 24... Kb8 {[%clk 0:02:53.3]} 25.
Ne4 {[%clk 0:00:12.9]} 25... Rhg8+ {[%clk 0:02:47.6]} 26. Ng5 {[%clk 0:00:12.7]}
26... Qg3+ {[%clk 0:02:46.3]} 27. Kh1 {[%clk 0:00:13.7]} 27... Bxf3+ {[%clk
0:02:47.6]} 28. Nxf3 {[%clk 0:00:14.7]} 28... Qg2# {[%clk 0:02:49.5]} 0-1

[Event "*** Titled Tuesday Blitz"]
[Site "Chess.com"]
[Date "2019.07.02"]
[Round "1"]
[White "Gubajdullin"]
[Black "Saitama_Hero"]
[Result "1-0"]
[WhiteElo "2604"]
[BlackElo "2246"]
[TimeControl "180+2"]
[EndTime "13:05:10 PDT"]
[Termination "Gubajdullin won by resignation"]

1. d4 {[%clk 0:03:00.1]} 1... Nf6 {[%clk 0:02:58.5]} 2. Bf4 {[%clk 0:03:00.5]}
2... g6 {[%clk 0:02:59.6]} 3. e3 {[%clk 0:03:01.5]} 3... Bg7 {[%clk 0:03:01.5]}
4. Nf3 {[%clk 0:03:02.7]} 4... O-O {[%clk 0:03:03.4]} 5. Be2 {[%clk 0:03:03.7]}
5... d6 {[%clk 0:03:05.1]} 6. O-O {[%clk 0:03:04.6]} 6... Nc6 {[%clk 0:03:05.8]}
7. h3 {[%clk 0:03:05]} 7... Nd7 {[%clk 0:03:06.8]} 8. c4 {[%clk 0:03:04.7]} 8...
e5 {[%clk 0:03:08.1]} 9. Bh2 {[%clk 0:03:05.5]} 9... f5 {[%clk 0:03:09.5]} 10.
Nc3 {[%clk 0:03:05.7]} 10... e4 {[%clk 0:03:09.2]} 11. Nd2 {[%clk 0:03:05.8]}
11... g5 {[%clk 0:03:09.5]} 12. b4 {[%clk 0:02:59.7]} 12... Kh8 {[%clk
0:03:04.8]} 13. c5 {[%clk 0:02:58.3]} 13... dxc5 {[%clk 0:03:03.1]} 14. bxc5
{[%clk 0:02:58.5]} 14... Nxc5 {[%clk 0:03:03]} 15. Nb5 {[%clk 0:02:53.7]} 15...
Ne6 {[%clk 0:02:34.5]} 16. d5 {[%clk 0:02:52.8]} 16... Qxd5 {[%clk 0:02:32.8]}
17. Bc4 {[%clk 0:02:52.9]} 17... Qc5 {[%clk 0:02:24.8]} 18. Bxe6 {[%clk
0:02:48]} 18... Bxe6 {[%clk 0:02:26.7]} 19. Nxc7 {[%clk 0:02:48.7]} 19... Bf7
{[%clk 0:02:23]} 20. Nxa8 {[%clk 0:02:47.5]} 20... Rxa8 {[%clk 0:02:21.2]} 21.
Nb3 {[%clk 0:02:46.4]} 21... Qa3 {[%clk 0:02:14.2]} 22. Qc1 {[%clk 0:02:45.9]}
22... Qa4 {[%clk 0:02:11.6]} 23. Nc5 {[%clk 0:02:46.3]} 23... Qb5 {[%clk
0:02:12.2]} 24. Rb1 {[%clk 0:02:44.9]} 24... Qa5 {[%clk 0:02:08]} 25. Nxb7
{[%clk 0:02:29.5]} 25... Qa6 {[%clk 0:02:08.1]} 26. Nd6 {[%clk 0:02:13.4]} 26...
Bxa2 {[%clk 0:02:06.8]} 27. Ra1 {[%clk 0:02:14.3]} 27... Bxa1 {[%clk 0:01:14]}
28. Qxa1+ {[%clk 0:02:14.2]} 28... Kg8 {[%clk 0:01:15.5]} 29. Nxf5 {[%clk
0:02:13.1]} 1-0

[Event "*** Titled Tuesday Blitz"]
[Site "Chess.com"]
[Date "2019.07.02"]
[Round "1"]
[White "tigra"]
[Black "timator"]
[Result "1-0"]
[WhiteElo "2729"]
[BlackElo "2372"]
[TimeControl "180+2"]
[EndTime "13:05:19 PDT"]
[Termination "tigra won by resignation"]

1. e4 {[%clk 0:03:01.5]} 1... c5 {[%clk 0:02:55.2]} 2. b4 {[%clk 0:03:01.1]}
2... d6 {[%clk 0:02:55]} 3. Nf3 {[%clk 0:02:58.8]} 3... Nf6 {[%clk 0:02:52.5]}
4. bxc5 {[%clk 0:02:58.7]} 4... dxc5 {[%clk 0:02:53.5]} 5. e5 {[%clk 0:02:59.2]}
5... Nd5 {[%clk 0:02:54.5]} 6. Bb5+ {[%clk 0:02:57.6]} 6... Bd7 {[%clk 0:02:55]}
7. a4 {[%clk 0:02:57.2]} 7... a6 {[%clk 0:02:55.1]} 8. Bc4 {[%clk 0:02:54.2]}
8... Bc6 {[%clk 0:02:51.3]} 9. e6 {[%clk 0:02:55]} 9... f6 {[%clk 0:02:38.7]}
10. O-O {[%clk 0:02:46.1]} 10... g6 {[%clk 0:02:40]} 11. Ba3 {[%clk 0:02:23.6]}
11... b6 {[%clk 0:02:38.5]} 12. d4 {[%clk 0:02:19.7]} 12... b5 {[%clk
0:02:07.1]} 13. Bxd5 {[%clk 0:02:14.7]} 13... Qxd5 {[%clk 0:02:03]} 14. Nc3
{[%clk 0:02:15.5]} 14... Qc4 {[%clk 0:02:03.7]} 15. d5 {[%clk 0:02:16.5]} 15...
Bb7 {[%clk 0:01:55.8]} 16. Bb2 {[%clk 0:01:37]} 16... b4 {[%clk 0:01:45.2]} 17.
Nd2 {[%clk 0:01:35.4]} 17... Qh4 {[%clk 0:01:39.4]} 18. Nce4 {[%clk 0:01:31.8]}
18... Bxd5 {[%clk 0:01:39.6]} 19. Bxf6 {[%clk 0:01:30.8]} 19... exf6 {[%clk
0:01:20.7]} 20. g3 {[%clk 0:01:31.6]} 20... Qxe4 {[%clk 0:01:09.4]} 21. Nxe4
{[%clk 0:01:31.9]} 21... Bxe4 {[%clk 0:01:11.3]} 22. Re1 {[%clk 0:01:31.7]}
22... Bf5 {[%clk 0:01:07.7]} 23. e7 {[%clk 0:01:30.2]} 1-0

[Event "*** Titled Tuesday Blitz"]
[Site "Chess.com"]
[Date "2019.07.02"]
[Round "1"]
[White "axvesik"]
[Black "Angry_Twin"]
[Result "0-1"]
[WhiteElo "2418"]
[BlackElo "2802"]
[TimeControl "180+2"]
[EndTime "13:05:32 PDT"]
[Termination "Angry_Twin won by resignation"]

1. e4 {[%clk 0:03:01.3]} 1... c5 {[%clk 0:03:00.8]} 2. Nf3 {[%clk 0:03:01.9]}
2... d6 {[%clk 0:03:02.3]} 3. d4 {[%clk 0:03:03.2]} 3... cxd4 {[%clk 0:03:00.2]}
4. Nxd4 {[%clk 0:03:05.1]} 4... Nf6 {[%clk 0:03:01.6]} 5. Nc3 {[%clk 0:03:05.5]}
5... a6 {[%clk 0:03:03.2]} 6. f3 {[%clk 0:03:05.1]} 6... e5 {[%clk 0:03:04.3]}
7. Nb3 {[%clk 0:03:04.7]} 7... Be6 {[%clk 0:03:05.6]} 8. Be3 {[%clk 0:03:05.9]}
8... Nbd7 {[%clk 0:03:06.3]} 9. Qd2 {[%clk 0:03:07.1]} 9... b5 {[%clk
0:03:07.7]} 10. Nd5 {[%clk 0:03:02.7]} 10... Bxd5 {[%clk 0:03:01.3]} 11. exd5
{[%clk 0:03:03.6]} 11... Nb6 {[%clk 0:03:02.9]} 12. Bxb6 {[%clk 0:02:36.9]}
12... Qxb6 {[%clk 0:03:04.8]} 13. a4 {[%clk 0:02:37.8]} 13... b4 {[%clk
0:02:52.4]} 14. a5 {[%clk 0:02:18.3]} 14... Qb7 {[%clk 0:02:53.3]} 15. Ra4
{[%clk 0:02:08.7]} 15... Nxd5 {[%clk 0:02:53.4]} 16. Bc4 {[%clk 0:02:09.2]}
16... Nf4 {[%clk 0:02:53.7]} 17. Rxb4 {[%clk 0:01:44.1]} 17... Qc6 {[%clk
0:02:54]} 18. Bd3 {[%clk 0:01:10.8]} 18... Be7 {[%clk 0:02:41.2]} 19. Be4 {[%clk
0:01:01.8]} 19... d5 {[%clk 0:02:40.5]} 20. Rb6 {[%clk 0:01:03]} 20... Qd7
{[%clk 0:02:41]} 21. g3 {[%clk 0:00:41.5]} 21... dxe4 {[%clk 0:02:29.9]} 22.
Qxd7+ {[%clk 0:00:42.2]} 22... Kxd7 {[%clk 0:02:31.8]} 23. gxf4 {[%clk
0:00:43.8]} 23... exf3 {[%clk 0:02:30.6]} 24. Kf2 {[%clk 0:00:44.7]} 24... Rhc8
{[%clk 0:02:29.3]} 25. c3 {[%clk 0:00:40.5]} 25... e4 {[%clk 0:02:21.7]} 26.
Rd1+ {[%clk 0:00:20.9]} 26... Ke8 {[%clk 0:02:22.6]} 27. f5 {[%clk 0:00:19.4]}
27... Rd8 {[%clk 0:02:20.8]} 28. Re1 {[%clk 0:00:19.6]} 28... Bh4+ {[%clk
0:02:20.9]} 0-1

[Event "*** Titled Tuesday Blitz"]
[Site "Chess.com"]
[Date "2019.07.02"]
[Round "1"]
[White "Tarlev_Konstantin"]
[Black "Roenko_Artur"]
[Result "1-0"]
[WhiteElo "2615"]
[BlackElo "2250"]
[TimeControl "180+2"]
[EndTime "13:05:39 PDT"]
[Termination "Tarlev_Konstantin won by resignation"]

1. e4 {[%clk 0:03:01.9]} 1... e6 {[%clk 0:02:56.9]} 2. Nf3 {[%clk 0:03:02.9]}
2... d5 {[%clk 0:02:57.1]} 3. Nc3 {[%clk 0:03:04.8]} 3... Nf6 {[%clk 0:02:56.4]}
4. e5 {[%clk 0:03:06.2]} 4... Nfd7 {[%clk 0:02:57.2]} 5. d4 {[%clk 0:03:08.1]}
5... c5 {[%clk 0:02:58]} 6. dxc5 {[%clk 0:03:10]} 6... Bxc5 {[%clk 0:02:57.7]}
7. Bd3 {[%clk 0:03:10.5]} 7... Nc6 {[%clk 0:02:50]} 8. Qe2 {[%clk 0:03:11.7]}
8... a6 {[%clk 0:02:45.2]} 9. O-O {[%clk 0:03:12.4]} 9... h6 {[%clk 0:02:37.6]}
10. Bf4 {[%clk 0:03:08.7]} 10... Nb4 {[%clk 0:02:19.7]} 11. Be3 {[%clk
0:03:04.4]} 11... Nxd3 {[%clk 0:02:17]} 12. cxd3 {[%clk 0:03:05.1]} 12... Be7
{[%clk 0:01:39.2]} 13. Rfc1 {[%clk 0:02:49]} 13... b6 {[%clk 0:01:33.3]} 14. Bf4
{[%clk 0:02:32.9]} 14... Bb7 {[%clk 0:01:26.9]} 15. Qd2 {[%clk 0:02:33.6]} 15...
Rc8 {[%clk 0:00:58.1]} 16. Ne2 {[%clk 0:02:34.1]} 16... g5 {[%clk 0:00:41.2]}
17. Bg3 {[%clk 0:02:31.4]} 17... g4 {[%clk 0:00:41.8]} 18. Nfd4 {[%clk
0:02:31.3]} 18... h5 {[%clk 0:00:39.5]} 19. Rxc8 {[%clk 0:02:28]} 19... Qxc8
{[%clk 0:00:40.2]} 20. Rc1 {[%clk 0:02:29.5]} 20... Qa8 {[%clk 0:00:41.8]} 21.
Bf4 {[%clk 0:02:28.4]} 21... Nc5 {[%clk 0:00:29.2]} 22. b4 {[%clk 0:02:27]}
22... Nd7 {[%clk 0:00:29.9]} 23. Bg5 {[%clk 0:02:24.8]} 23... Qd8 {[%clk
0:00:24.2]} 24. Bxe7 {[%clk 0:02:22.7]} 24... Qxe7 {[%clk 0:00:25]} 25. Rc7
{[%clk 0:02:24.2]} 1-0

[Event "*** Titled Tuesday Blitz"]
[Site "Chess.com"]
[Date "2019.07.02"]
[Round "1"]
[White "SoltaniciR"]
[Black "akgod"]
[Result "1-0"]
[WhiteElo "2561"]
[BlackElo "2205"]
[TimeControl "180+2"]
[EndTime "13:05:45 PDT"]
[Termination "SoltaniciR won by resignation"]

1. e4 {[%clk 0:03:01.9]} 1... c5 {[%clk 0:02:59.8]} 2. Nf3 {[%clk 0:03:02.1]}
2... Nc6 {[%clk 0:02:58.5]} 3. Nc3 {[%clk 0:03:03]} 3... e5 {[%clk 0:02:57.7]}
4. Bc4 {[%clk 0:03:02.8]} 4... d6 {[%clk 0:02:56.3]} 5. d3 {[%clk 0:03:02.5]}
5... Be7 {[%clk 0:02:57]} 6. O-O {[%clk 0:03:01.7]} 6... Nf6 {[%clk 0:02:57.2]}
7. Ng5 {[%clk 0:03:02.7]} 7... O-O {[%clk 0:02:58]} 8. f4 {[%clk 0:03:04.3]}
8... h6 {[%clk 0:02:52.3]} 9. Nf3 {[%clk 0:02:59.8]} 9... Nd4 {[%clk 0:02:46]}
10. fxe5 {[%clk 0:02:54.2]} 10... Nxf3+ {[%clk 0:02:46.3]} 11. Qxf3 {[%clk
0:02:53]} 11... dxe5 {[%clk 0:02:47.4]} 12. Qg3 {[%clk 0:02:49.3]} 12... Kh7
{[%clk 0:02:47.2]} 13. Nd5 {[%clk 0:02:28.7]} 13... Nxd5 {[%clk 0:02:47.8]} 14.
Bxd5 {[%clk 0:02:29.3]} 14... Bf6 {[%clk 0:02:43.8]} 15. Be3 {[%clk 0:02:27.1]}
15... Qe7 {[%clk 0:02:41.6]} 16. Qf2 {[%clk 0:01:59.5]} 16... Bh4 {[%clk
0:01:55.8]} 17. g3 {[%clk 0:01:57.4]} 17... Bh3 {[%clk 0:01:44.1]} 18. gxh4
{[%clk 0:01:58.4]} 18... Bxf1 {[%clk 0:01:44.8]} 19. Rxf1 {[%clk 0:01:58.3]}
19... Rac8 {[%clk 0:01:44.3]} 20. Kh1 {[%clk 0:01:50.4]} 20... b6 {[%clk
0:01:39.2]} 21. Rg1 {[%clk 0:01:39.9]} 21... Rcd8 {[%clk 0:01:26.4]} 22. Qg3
{[%clk 0:01:27.7]} 22... f5 {[%clk 0:01:21.1]} 23. Qg6+ {[%clk 0:00:59.4]} 23...
Kh8 {[%clk 0:01:21.9]} 24. Bg5 {[%clk 0:00:54.6]} 24... Qe8 {[%clk 0:01:22.3]}
25. Bxd8 {[%clk 0:00:54.8]} 25... Qxd8 {[%clk 0:01:22.8]} 1-0

[Event "*** Titled Tuesday Blitz"]
[Site "Chess.com"]
[Date "2019.07.02"]
[Round "1"]
[White "SergeiAza"]
[Black "FrenchMonster2002"]
[Result "1-0"]
[WhiteElo "2833"]
[BlackElo "2435"]
[TimeControl "180+2"]
[EndTime "13:05:47 PDT"]
[Termination "SergeiAza won by resignation"]

1. e4 {[%clk 0:03:01.9]} 1... c5 {[%clk 0:02:59.8]} 2. Nf3 {[%clk 0:03:02.3]}
2... Nc6 {[%clk 0:03:00.8]} 3. d4 {[%clk 0:03:03.7]} 3... cxd4 {[%clk
0:03:02.7]} 4. Nxd4 {[%clk 0:03:04.9]} 4... e5 {[%clk 0:03:04.4]} 5. Nb5 {[%clk
0:03:05.3]} 5... d6 {[%clk 0:03:06]} 6. N1c3 {[%clk 0:03:05.7]} 6... a6 {[%clk
0:03:07.3]} 7. Na3 {[%clk 0:03:06.4]} 7... Be7 {[%clk 0:03:09.2]} 8. Nc4 {[%clk
0:03:06.2]} 8... b5 {[%clk 0:02:59.1]} 9. Ne3 {[%clk 0:03:07]} 9... Be6 {[%clk
0:02:59.1]} 10. Ncd5 {[%clk 0:03:03.5]} 10... Rb8 {[%clk 0:02:51.1]} 11. c3
{[%clk 0:03:01.6]} 11... Bg5 {[%clk 0:02:41.6]} 12. Bd3 {[%clk 0:02:45.4]} 12...
Bxe3 {[%clk 0:02:18.2]} 13. Bxe3 {[%clk 0:02:33.2]} 13... Nf6 {[%clk 0:01:55.6]}
14. Bg5 {[%clk 0:02:27.9]} 14... Bxd5 {[%clk 0:01:57.1]} 15. exd5 {[%clk
0:02:28.1]} 15... Ne7 {[%clk 0:01:58.8]} 16. Bxf6 {[%clk 0:02:22.9]} 16... gxf6
{[%clk 0:02:00.7]} 17. Qf3 {[%clk 0:02:23.8]} 17... Ng6 {[%clk 0:01:44.9]} 18.
g3 {[%clk 0:02:23]} 18... Ke7 {[%clk 0:01:28.3]} 19. O-O {[%clk 0:02:22.6]}
19... h5 {[%clk 0:01:27.8]} 20. h4 {[%clk 0:02:21.7]} 20... Qg8 {[%clk
0:01:09.7]} 21. Kh2 {[%clk 0:02:20.2]} 21... Qg7 {[%clk 0:01:03.3]} 22. a4
{[%clk 0:02:18.9]} 22... b4 {[%clk 0:00:55.3]} 23. Bxa6 {[%clk 0:02:16.1]} 23...
Nf8 {[%clk 0:00:27]} 24. Bb5 {[%clk 0:02:11.2]} 24... bxc3 {[%clk 0:00:24.6]}
25. Qxc3 {[%clk 0:02:06.8]} 25... Nd7 {[%clk 0:00:14.4]} 26. Bxd7 {[%clk
0:02:04.3]} 26... Kxd7 {[%clk 0:00:15.3]} 27. Qc6+ {[%clk 0:02:05.3]} 27... Ke7
{[%clk 0:00:17]} 28. Qc7+ {[%clk 0:02:05.8]} 1-0